bitfinex-derivatives/quotes_SOLF0:USTF0_20250518
["timestamp","ask_amount","ask_price","bid_price","bid_amount"]
[1747577244895,78.54,172.81,172.71,84.32676422]
[1747577245211,78.54,172.81,172.71,5.34676422]
[1747577246003,5.7871,172.75,172.72,4.71181579]
[1747577247105,87.03259011,172.81,172.72,4.71181579]
[1747577247799,5.7875,172.73,172.72,4.71181579]
[1747577248103,5.7875,172.73,172.7,5.34676422]
[1747577250104,5.7875,172.73,172.71,4.71569133]
[1747577251503,5.7873,172.74,172.71,4.71569133]
[1747577252103,78.28,172.8,172.71,10.50379133]
[1747577252298,78.28,172.8,172.72,4.71569133]
[1747577252901,5.7867,172.76,172.72,4.71569133]
[1747577253404,5.7862,172.77,172.72,4.71569133]
[1747577253703,5.7862,172.77,172.72,10.50339133]
[1747577253904,5.7862,172.77,172.73,4.71569133]
[1747577255300,5.7857,172.79,172.73,4.71569133]
[1747577255804,157.18,172.82,172.73,4.71569133]
[1747577256000,5.7852,172.8,172.75,5.7868]
[1747577257306,5.7852,172.8,172.76,4.71569133]
[1747577257708,5.7849,172.81,172.76,10.50219133]
[1747577257910,232.98003002,172.84,172.76,4.71569133]
[1747577258298,5.7852,172.8,172.76,4.71569133]
[1747577258495,232.98003002,172.84,172.76,4.71569133]
[1747577259000,5.7855,172.8,172.77,4.71569133]
[1747577259805,5.7855,172.79,172.77,4.71569133]
[1747577260011,232.92003002,172.84,172.77,4.71569133]
[1747577260400,5.7858,172.79,172.77,4.71569133]
[1747577260905,5.7845,172.82,172.77,4.71569133]
[1747577261103,5.7845,172.82,172.74,78.08]
[1747577261407,5.7845,172.82,172.77,5.7861]
[1747577262102,154.80003002,172.84,172.76,78.42]
[1747577263300,154.80003002,172.84,172.78,4.7125565]
[1747577264510,154.80003002,172.84,172.76,78.42]
[1747577264811,5.7852,172.8,172.76,78.42]
[1747577265306,5.7849,172.81,172.76,84.2065]
[1747577265508,154.80003002,172.84,172.76,78.42]
[1747577266108,5.7854,172.8,172.76,78.42]
[1747577266307,5.7854,172.8,172.77,4.70952066]
[1747577267209,5.7849,172.81,172.77,4.70952066]
[1747577267810,5.7852,172.8,172.77,4.70952066]
[1747577268010,5.7852,172.8,172.78,4.70952066]
[1747577268909,5.7855,172.79,172.78,4.70952066]
[1747577272112,5.7865,172.76,172.75,4.70952066]
[1747577274016,5.7862,172.77,172.75,4.70952066]
[1747577275614,5.7865,172.76,172.75,4.70952066]
[1747577275817,1.8731,172.84,172.71,5.34676422]
[1747577275818,77.82,172.8,172.71,5.34676422]
[1747577276319,5.7871,172.75,172.71,5.34676422]
[1747577276619,77.82,172.8,172.71,5.34676422]
[1747577276921,5.7872,172.74,172.71,5.34676422]
[1747577277619,5.7872,172.74,172.72,4.71292436]
[1747577278219,5.7869,172.75,172.72,4.71292436]
[1747577278421,3.6846,172.79,172.72,4.71292436]
[1747577278722,5.7866,172.76,172.73,4.71292436]
[1747577279723,5.7862,172.77,172.73,4.71292436]
[1747577280222,5.7865,172.76,172.73,4.71292436]
[1747577280423,3.6846,172.79,172.73,4.71292436]
[1747577280622,3.6846,172.79,172.74,4.71292436]
[1747577281422,10.78826292,172.87,172.77,8.4940599]
[1747577281616,31.72845057,172.92,172.84,8.48240655]
[1747577281617,14.38435057,172.92,172.84,8.48240655]
[1747577281815,14.38435057,172.92,172.85,155.54]
[1747577282121,14.38435057,172.92,172.87,5.7827]
[1747577282624,14.38435057,172.92,172.86,12.42424517]
[1747577282823,14.38435057,172.92,172.86,3.9442]
[1747577283420,5.7815,172.91,172.86,3.9442]
[1747577283720,14.38435057,172.92,172.85,4.71292436]
[1747577283924,92.06435057,172.92,172.85,4.71292436]
[1747577284428,5.7831,172.86,172.85,4.71292436]
[1747577284615,5.7831,172.86,172.79,3.8331]
[1747577284616,77.68,172.92,172.81,5.34676422]
[1747577284927,77.68,172.92,172.82,5.7842]
[1747577286034,77.68,172.92,172.83,5.7841]
[1747577286528,5.7826,172.88,172.83,5.7841]
[1747577286720,77.68,172.92,172.83,5.7841]
[1747577286917,77.68,172.92,172.81,5.34676422]
[1747577287122,77.8,172.93,172.82,5.7844]
[1747577287323,77.6,172.92,172.82,5.7844]
[1747577287932,77.6,172.92,172.83,4.74306635]
[1747577289429,77.6,172.92,172.82,4.74306635]
[1747577290032,5.7834,172.86,172.82,10.52736635]
[1747577290438,77.6,172.92,172.82,4.74306635]
[1747577290632,5.7837,172.85,172.82,4.74306635]
[1747577291238,5.7837,172.85,172.81,5.7848]
[1747577291833,77.6,172.92,172.79,161.2321]
[1747577292033,5.7839,172.84,172.8,5.7851]
[1747577292334,8.48004517,172.91,172.8,4.74142846]
[1747577293237,5.7848,172.81,172.8,4.74142846]
[1747577294738,5.7848,172.81,172.78,4.74142846]
[1747577295042,5.7845,172.83,172.78,10.52702846]
[1747577296240,5.7846,172.82,172.78,10.52702846]
[1747577296540,83.583,172.87,172.79,4.74142846]
[1747577296742,5.783,172.87,172.8,8.48004517]
[1747577296942,77.4,172.89,172.82,5.7845]
[1747577297142,5.7828,172.87,172.82,5.7845]
[1747577297736,5.7832,172.86,172.82,5.7845]
[1747577297942,5.7832,172.86,172.81,5.7847]
[1747577298129,77.4,172.89,172.81,5.7847]
[1747577298838,5.7828,172.87,172.82,4.74142846]
[1747577299141,77.4,172.89,172.82,4.74142846]
[1747577299445,5.7842,172.83,172.82,4.74142846]
[1747577300241,5.7842,172.83,172.78,11.13256422]
[1747577300540,5.7839,172.84,172.78,11.13256422]
[1747577301437,5.7839,172.84,172.79,5.7855]
[1747577301635,3.9517,172.88,172.78,5.34676422]
[1747577302042,5.7835,172.86,172.78,5.34676422]
[1747577302548,77.3,172.91,172.79,8.48004517]
[1747577302735,77.3,172.91,172.8,77.3]
[1747577302938,77.3,172.91,172.81,77.8]
[1747577303245,5.7826,172.88,172.81,77.8]
[1747577303644,5.7826,172.88,172.81,83.5848]
[1747577303839,5.7829,172.87,172.81,77.8]
[1747577304240,5.7829,172.87,172.81,83.5848]
[1747577304548,152.84246686,172.94,172.82,8.48004517]
[1747577304845,152.84246686,172.94,172.83,1.9891]
[1747577305338,5.7814,172.92,172.86,5.7829]
[1747577305545,5.7814,172.92,172.86,83.0029]
[1747577305745,152.84246686,172.94,172.83,1.9891]
[1747577305944,5.7821,172.9,172.84,160.2237]
[1747577306145,5.7821,172.9,172.84,83.0037]
[1747577306341,238.54251203,172.94,172.79,8.48004517]
[1747577306546,5.7831,172.87,172.81,83.0047]
[1747577306739,77.2,172.9,172.84,4.73745255]
[1747577306938,5.7834,172.86,172.84,4.73745255]
[1747577307438,77.2,172.9,172.84,4.73745255]
[1747577307746,5.7823,172.89,172.84,10.52115255]
[1747577308043,77.2,172.9,172.84,4.73745255]
[1747577308446,3.7949,172.92,172.84,4.73745255]
[1747577308639,80.9549,172.92,172.84,4.73745255]
[1747577308840,80.9549,172.92,172.82,4.73745255]
[1747577309040,5.7821,172.89,172.83,5.7841]
[1747577309248,80.9549,172.92,172.82,4.73745255]
[1747577309546,5.7827,172.88,172.82,10.52165255]
[1747577309748,80.9549,172.92,172.82,4.73745255]
[1747577310048,80.9549,172.92,172.82,10.52185255]
[1747577310650,5.7827,172.88,172.83,5.7841]
[1747577311147,5.7822,172.89,172.84,5.7838]
[1747577311544,80.9549,172.92,172.81,77.22]
[1747577311744,5.7819,172.9,172.81,77.22]
[1747577312053,3.7949,172.92,172.82,8.48004517]
[1747577312351,3.7949,172.92,172.83,77.22]
[1747577312650,3.7949,172.92,172.83,83.0041]
[1747577313245,3.7949,172.92,172.83,77.22]
[1747577313753,5.7827,172.88,172.83,77.22]
[1747577314251,10.77249132,173.0,172.83,77.22]
[1747577314252,77.04,172.96,172.83,77.22]
[1747577314460,77.04,172.96,172.84,1.8807]
[1747577314748,77.04,172.96,172.86,5.7829]
[1747577317053,5.7818,172.91,172.87,5.7828]
[1747577317652,5.7811,172.93,172.85,77.22]
[1747577317952,5.7811,172.93,172.85,85.70004517]
[1747577318459,5.7811,172.93,172.88,5.7824]
[1747577319148,77.22,172.97,172.86,4.73352138]
[1747577319354,77.22,172.97,172.87,154.16]
[1747577319651,5.7814,172.92,172.87,159.9426]
[1747577320557,5.7814,172.92,172.88,5.7824]
[1747577320761,5.7809,172.93,172.88,5.7824]
[1747577320956,5.7809,172.93,172.87,154.16]
[1747577321152,5.7809,172.93,172.88,5.7823]
[1747577323755,5.7805,172.94,172.88,5.7823]
[1747577323956,5.7805,172.94,172.89,5.782]
[1747577325059,5.7805,172.94,172.88,4.73677509]
[1747577325060,5.7802,172.95,172.9,5.7818]
[1747577325360,77.22,172.97,172.88,4.73677509]
[1747577325556,5.7807,172.94,172.88,4.73677509]
[1747577325858,77.22,172.97,172.88,4.73677509]
[1747577326161,77.22,172.97,172.87,154.16]
[1747577326661,5.781,172.93,172.88,5.7823]
[1747577327053,5.781,172.93,172.87,154.16]
[1747577327263,5.781,172.93,172.89,5.7821]
[1747577327560,77.22,172.97,172.87,154.16]
[1747577327866,77.22,172.97,172.88,5.7824]
[1747577328351,5.7813,172.92,172.88,5.7824]
[1747577328960,5.7809,172.93,172.89,5.7821]
[1747577329361,5.7809,172.93,172.9,5.7818]
[1747577329868,5.7809,172.93,172.87,77.2]
[1747577330059,5.7809,172.93,172.89,5.782]
[1747577330258,77.22,172.97,172.87,77.2]
[1747577330660,77.22,172.97,172.88,5.7822]
[1747577330861,77.22,172.97,172.84,9.23566422]
[1747577331161,85.70004517,172.97,172.87,77.2]
[1747577331669,85.70004517,172.97,172.84,7.22746422]
[1747577332165,5.7828,172.88,172.84,13.01106422]
[1747577333463,5.7828,172.87,172.84,13.01106422]
[1747577333768,5.7828,172.87,172.84,5.34676422]
[1747577334163,5.7828,172.87,172.85,4.74482535]
[1747577334965,5.7831,172.86,172.85,4.74482535]
[1747577335570,5.7831,172.86,172.82,82.54676422]
[1747577335869,5.7831,172.86,172.82,87.69116422]
[1747577337470,1.8595,172.92,172.83,4.74737668]
[1747577337471,5.7829,172.87,172.83,4.74737668]
[1747577338670,5.7829,172.87,172.84,4.74737668]
[1747577338871,5.7832,172.86,172.84,4.74737668]
[1747577339071,1.8595,172.92,172.84,4.74737668]
[1747577339772,5.7828,172.88,172.84,4.74737668]
[1747577340075,1.8595,172.92,172.84,4.74737668]
[1747577340265,5.7832,172.86,172.84,4.74737668]
[1747577340675,5.7832,172.86,172.82,76.56]
[1747577341575,5.7832,172.86,172.82,82.3444]
[1747577341975,1.8595,172.92,172.82,76.56]
[1747577342271,1.8595,172.92,172.83,4.75071116]
[1747577343269,5.7823,172.89,172.84,5.7836]
[1747577343467,5.7823,172.89,172.83,4.75071116]
[1747577343668,1.8595,172.92,172.83,4.75071116]
[1747577343871,1.8595,172.92,172.84,4.75071116]
[1747577344474,5.7831,172.87,172.84,4.75071116]
[1747577344875,5.7831,172.87,172.85,4.75071116]
[1747577345877,5.7826,172.88,172.85,4.75071116]
[1747577346079,78.1995,172.92,172.85,4.75071116]
[1747577346575,5.7832,172.86,172.85,4.75071116]
[1747577346879,154.7595,172.92,172.82,5.34676422]
[1747577348974,154.7595,172.92,172.82,5.7842]
[1747577349171,154.7595,172.92,172.79,85.04004517]
[1747577349479,154.7595,172.92,172.8,3.7267]
[1747577349672,5.7831,172.87,172.83,5.7841]
[1747577350069,76.26,172.91,172.84,5.7837]
[1747577350275,76.26,172.91,172.8,3.7267]
[1747577350777,5.783,172.87,172.83,5.7839]
[1747577351577,5.7831,172.86,172.85,4.75729381]
[1747577354078,5.7831,172.86,172.82,5.7845]
[1747577355078,5.7831,172.86,172.81,5.7847]
[1747577355790,5.7835,172.85,172.82,4.78440841]
[1747577356777,5.7833,172.86,172.82,10.56880841]
[1747577357274,5.7833,172.86,172.83,4.78440841]
[1747577357474,5.7827,172.88,172.83,4.78440841]
[1747577357676,154.4995,172.92,172.83,4.78440841]
[1747577357875,77.9395,172.92,172.84,76.56]
[1747577358076,5.7824,172.89,172.84,82.3436]
[1747577358482,5.7824,172.89,172.84,76.56]
[1747577358670,5.7824,172.89,172.85,5.7835]
[1747577358875,5.7824,172.89,172.85,10.56790841]
[1747577359084,5.7819,172.9,172.85,10.56790841]
[1747577359285,77.9395,172.92,172.85,4.78440841]
[1747577359580,1.8595,172.92,172.85,4.78440841]
[1747577359882,76.56,172.96,172.85,13.26445358]
[1747577360081,5.781,172.93,172.88,5.7825]
[1747577360487,76.56,172.96,172.86,1.8831]
[1747577360784,1.9282,172.97,172.9,5.7815]
[1747577361287,1.9282,172.97,172.86,10.46790841]
[1747577361485,1.9282,172.97,172.86,6.66750841]
[1747577361677,229.35533222,173.0,172.88,5.7825]
[1747577361678,152.79533222,173.0,172.88,5.7825]
[1747577361983,154.80793222,173.0,172.88,5.7825]
[1747577362172,5.7809,172.93,172.87,86.40514517]
[1747577362371,5.7809,172.93,172.89,5.7819]
[1747577362685,5.7813,172.92,172.89,4.78440841]
[1747577362886,75.96,172.97,172.89,4.78440841]
[1747577363384,5.7814,172.92,172.89,4.78440841]
[1747577363888,5.7806,172.94,172.89,4.78440841]
[1747577364386,5.7806,172.94,172.89,81.34440841]
[1747577364584,5.7806,172.94,172.9,5.7816]
[1747577364774,5.7806,172.94,172.9,4.78440841]
[1747577364979,5.7809,172.93,172.9,4.78440841]
[1747577365987,5.7812,172.92,172.9,4.78440841]
[1747577366391,152.48,172.98,172.9,4.78440841]
[1747577366685,5.7803,172.95,172.91,10.56590841]
[1747577366891,230.66793222,173.0,172.91,4.78440841]
[1747577367692,5.7806,172.94,172.91,4.78440841]
[1747577368096,5.7806,172.94,172.91,10.56590841]
[1747577368289,5.7806,172.94,172.91,5.7815]
[1747577368995,5.7806,172.94,172.9,5.7817]
[1747577369302,154.80793222,173.0,172.89,76.56]
[1747577369601,154.80793222,173.0,172.91,5.7812]
[1747577370002,154.80793222,173.0,172.9,4.77812851]
[1747577370197,152.79533222,173.0,172.9,4.77812851]
[1747577370601,152.79533222,173.0,172.91,5.7814]
[1747577370795,5.7804,172.95,172.91,5.7814]
[1747577371105,152.79533222,173.0,172.91,5.7814]
[1747577371399,152.79533222,173.0,172.92,4.77812851]
[1747577371597,5.7808,172.93,172.92,4.77812851]
[1747577372507,5.7808,172.93,172.92,1.75152851]
[1747577373303,5.7812,172.92,172.89,5.7819]
[1747577374209,5.7812,172.92,172.88,11.12916422]
[1747577375603,5.7812,172.92,172.89,5.7821]
[1747577376209,5.7812,172.92,172.88,5.7824]
[1747577378306,5.7812,172.92,172.87,75.86]
[1747577379506,5.7812,172.92,172.88,5.7822]
[1747577379709,5.7809,172.93,172.88,5.7822]
[1747577380009,75.72,172.95,172.87,81.6428]
[1747577380311,5.7815,172.91,172.87,81.6428]
[1747577381910,5.7815,172.91,172.88,5.7824]
[1747577382611,5.7813,172.92,172.89,5.7821]
[1747577383411,5.7813,172.92,172.88,5.7824]
[1747577383606,75.86,172.97,172.87,75.86]
[1747577383805,75.86,172.97,172.88,8.48004517]
[1747577384009,5.7801,172.96,172.92,5.7811]
[1747577384207,152.79533222,173.0,172.92,75.86]
[1747577384607,5.7793,172.98,172.94,5.7802]
[1747577385314,5.7796,172.97,172.94,5.7802]
[1747577385517,152.79533222,173.0,172.93,5.7808]
[1747577385717,152.79533222,173.0,172.92,75.86]
[1747577386016,152.79533222,173.0,172.91,75.86]
[1747577386315,5.7804,172.95,172.91,75.86]
[1747577386613,152.79533222,173.0,172.91,75.86]
[1747577386813,5.7797,172.97,172.91,75.86]
[1747577387416,5.7792,172.98,172.91,75.86]
[1747577387820,5.7792,172.98,172.94,5.7802]
[1747577388116,75.38,173.01,172.94,5.7802]
[1747577388311,75.86,173.02,172.92,13.23718083]
[1747577388513,5.779,172.99,172.95,5.7799]
[1747577389517,75.86,173.02,172.92,10.36634517]
[1747577389912,75.86,173.02,172.92,1.8863]
[1747577390420,5.7797,172.97,172.93,5.7806]
[1747577390614,5.7797,172.97,172.92,1.8863]
[1747577390912,5.7794,172.98,172.92,1.8863]
[1747577391413,151.16,173.02,172.92,1.8863]
[1747577392112,151.16,173.02,172.93,5.7808]
[1747577392822,5.7797,172.97,172.94,5.7804]
[1747577393521,5.7798,172.96,172.93,5.7807]
[1747577393726,151.16,173.02,172.92,1.8863]
[1747577394022,151.16,173.02,172.91,75.86]
[1747577394411,159.64004517,173.02,172.91,75.86]
[1747577394722,159.64004517,173.02,172.9,81.6216]
[1747577394916,159.64004517,173.02,172.9,75.84]
[1747577395117,159.64004517,173.02,172.91,5.7814]
[1747577396220,159.64004517,173.02,172.92,5.7811]
[1747577396426,151.16,173.02,172.9,75.84]
[1747577396726,5.78,172.96,172.9,75.84]
[1747577397525,5.78,172.96,172.92,5.7809]
[1747577397724,5.7802,172.95,172.92,5.7809]
[1747577398419,151.16,173.02,172.9,75.84]
[1747577399019,151.16,173.02,172.94,5.7805]
[1747577400024,5.7794,172.98,172.94,5.7805]
[1747577400228,151.16,173.02,172.94,5.7805]
[1747577400825,75.86,173.02,172.95,5.7801]
[1747577401227,5.7794,172.98,172.9,75.84]
[1747577401422,75.86,173.02,172.92,8.48004517]
[1747577401615,5.6702,173.04,172.93,75.04]
[1747577401815,5.6702,173.04,172.96,5.7796]
[1747577402129,5.6702,173.04,172.96,80.9396]
[1747577402426,5.6702,173.04,172.97,5.7794]
[1747577402619,5.6702,173.04,172.96,75.16]
[1747577402816,5.7775,173.03,172.96,75.16]
[1747577403021,85.77249132,173.08,172.96,75.16]
[1747577403326,85.77249132,173.08,172.97,4.75762752]
[1747577403628,5.7777,173.03,172.97,4.75762752]
[1747577403826,5.7777,173.03,172.99,5.7787]
[1747577404027,5.7778,173.02,172.97,4.75762752]
[1747577404329,85.77249132,173.08,172.97,4.75762752]
[1747577404626,5.7784,173.01,172.97,4.75762752]
[1747577404820,5.7784,173.01,172.97,10.53682752]
[1747577405522,5.7784,173.01,172.97,5.7792]
[1747577405729,75.0,173.08,172.96,75.16]
[1747577406226,5.7788,173.0,172.97,5.7795]
[1747577406427,5.7788,173.0,172.96,75.16]
[1747577406626,5.7787,173.0,172.96,5.7795]
[1747577406830,5.7787,173.0,172.95,75.14]
[1747577407332,5.7787,173.0,172.97,5.7792]
[1747577407829,5.7782,173.01,172.95,75.14]
[1747577408025,75.0,173.08,172.95,75.14]
[1747577408223,75.0,173.08,172.95,83.62004517]
[1747577408723,75.0,173.08,172.96,4.75495229]
[1747577409123,5.778,173.02,172.98,5.7789]
[1747577409419,75.0,173.08,172.98,5.7789]
[1747577409626,89.43514517,173.1,172.98,5.7789]
[1747577409828,74.84,173.08,172.98,5.7789]
[1747577410127,5.7785,173.01,172.97,5.7794]
[1747577410428,5.7785,173.01,172.95,83.62004517]
[1747577410624,74.84,173.08,172.98,5.7788]
[1747577410934,10.77249132,173.12,172.98,8.48004517]
[1747577411127,14.30124517,173.11,172.99,75.14]
[1747577411427,89.44124517,173.11,172.99,75.14]
[1747577411619,89.44124517,173.11,172.99,80.9187]
[1747577411821,89.44124517,173.11,172.99,75.14]
[1747577412024,89.44124517,173.11,172.99,4.75128073]
[1747577412222,8.48004517,173.08,172.99,4.75128073]
[1747577412424,5.7782,173.01,172.99,4.75128073]
[1747577413031,5.7782,173.01,172.98,80.9189]
[1747577413527,5.7779,173.02,172.99,5.7788]
[1747577413832,5.7779,173.02,172.98,75.14]
[1747577414233,5.7779,173.02,172.98,80.919]
[1747577414835,5.7779,173.02,172.99,5.7787]
[1747577415236,5.7779,173.02,172.98,75.14]
[1747577415427,5.7784,173.01,172.98,75.14]
[1747577415933,5.7779,173.02,172.98,75.14]
[1747577416434,5.7779,173.02,172.99,5.7786]
[1747577418326,74.78,173.07,172.98,75.14]
[1747577418528,8.48004517,173.05,172.98,75.14]
[1747577418730,5.675,173.04,172.95,499.52]
[1747577418936,5.7797,172.97,172.95,499.52]
[1747577419235,5.7797,172.97,172.94,80.9002]
[1747577419736,5.7792,172.98,172.94,80.9002]
[1747577420136,5.7792,172.98,172.95,4.75366668]
[1747577420736,5.7791,172.99,172.96,5.7798]
[1747577420936,5.7791,172.99,172.95,4.75366668]
[1747577421235,5.7791,172.99,172.95,10.53356668]
[1747577421836,5.7791,172.99,172.95,5.7799]
[1747577422238,5.675,173.04,172.94,75.12]
[1747577422742,5.779,172.99,172.96,5.7797]
[1747577423332,5.7786,173.0,172.96,5.7797]
[1747577423733,5.7786,173.0,172.97,4.75448918]
[1747577423934,5.7788,172.99,172.97,4.75448918]
[1747577424141,80.195,173.04,172.97,4.75448918]
[1747577425039,5.7788,172.99,172.97,4.75448918]
[1747577425335,5.7788,172.99,172.95,5.7799]
[1747577425542,5.7794,172.98,172.94,80.9004]
[1747577425842,80.195,173.04,172.94,75.12]
[1747577426036,5.7798,172.96,172.94,75.12]
[1747577426234,80.195,173.04,172.94,75.12]
[1747577426435,80.195,173.04,172.92,5.34676422]
[1747577426942,5.7807,172.94,172.92,5.34676422]
[1747577427335,74.44,172.99,172.93,4.76438867]
[1747577428544,5.7807,172.94,172.93,4.76438867]
[1747577433547,5.7812,172.92,172.9,74.44]
[1747577433753,3.7209,172.98,172.87,5.34676422]
[1747577434053,2.0066,172.97,172.87,5.34676422]
[1747577434253,74.44,172.96,172.87,5.34676422]
[1747577435355,74.44,172.96,172.87,11.12936422]
[1747577435655,74.44,172.96,172.88,4.74305647]
[1747577435854,5.7815,172.91,172.88,4.74305647]
[1747577436054,74.44,172.96,172.88,10.52545647]
[1747577436454,5.7817,172.91,172.88,4.74305647]
[1747577436850,74.44,172.96,172.88,4.74305647]
[1747577437449,74.44,172.96,172.89,4.74305647]
[1747577437751,5.7817,172.91,172.89,4.74305647]
[1747577438649,5.7818,172.9,172.89,4.74305647]
[1747577439852,5.7822,172.89,172.86,80.223]
[1747577440050,74.16,172.94,172.86,74.44]
[1747577440455,5.7827,172.88,172.86,74.44]
[1747577440660,5.7827,172.88,172.84,14.26364517]
[1747577440957,5.7827,172.88,172.84,8.48004517]
[1747577441161,5.7823,172.89,172.86,5.783]
[1747577441559,74.16,172.94,172.85,4.73750728]
[1747577442059,74.44,172.96,172.85,4.73750728]
[1747577442248,5.7814,172.92,172.88,5.7824]
[1747577442658,5.7815,172.91,172.88,5.7824]
[1747577443456,5.7819,172.9,172.86,5.7828]
[1747577443755,5.7819,172.9,172.84,8.48004517]
[1747577443957,148.56,172.96,172.84,8.48004517]
[1747577444352,3.7209,172.98,172.87,8.48004517]
[1747577444658,3.7209,172.98,172.87,82.94004517]
[1747577445051,5.7806,172.94,172.9,5.7815]
[1747577445358,5.7806,172.94,172.87,82.94004517]
[1747577445657,5.7806,172.94,172.91,5.7813]
[1747577445856,3.7209,172.98,172.9,8.48004517]
[1747577446062,2.0067,173.02,172.93,8.48004517]
[1747577446357,5.7791,172.99,172.93,82.94004517]
[1747577447054,5.7792,172.98,172.93,82.94004517]
[1747577447257,2.0067,173.02,172.93,82.94004517]
[1747577447452,2.0067,173.02,172.94,5.7804]
[1747577447650,5.7794,172.98,172.94,5.7804]
[1747577447955,5.7794,172.98,172.95,5.7801]
[1747577449559,5.7789,172.99,172.96,5.7798]
[1747577449757,2.0067,173.02,172.93,82.94004517]
[1747577450058,2.0067,173.02,172.95,5.7801]
[1747577450454,2.0067,173.02,172.93,82.94004517]
[1747577450660,2.0067,173.02,172.94,5.7804]
[1747577451463,5.7794,172.98,172.94,5.7804]
[1747577452060,5.7794,172.98,172.95,5.7801]
[1747577452955,2.0067,173.02,172.93,74.46]
[1747577453263,2.0067,173.02,172.9,82.94004517]
[1747577453454,2.0067,173.02,172.9,74.46]
[1747577454157,2.0067,173.02,172.9,80.2417]
[1747577454360,2.0067,173.02,172.9,74.46]
[1747577454659,5.7808,172.94,172.9,80.2418]
[1747577456556,73.84,172.97,172.9,80.2418]
[1747577456764,73.84,172.97,172.91,5.7815]
[1747577456962,5.7802,172.95,172.88,5.7962]
[1747577457156,73.84,172.97,172.88,5.7962]
[1747577457357,73.84,172.97,172.93,5.7806]
[1747577457866,5.78,172.96,172.92,5.781]
[1747577458163,73.84,172.97,172.92,5.781]
[1747577458764,5.7802,172.95,172.91,5.7814]
[1747577459763,5.7802,172.95,172.92,5.7811]
[1747577461467,5.7798,172.96,172.93,5.7808]
[1747577461867,148.18,172.98,172.93,5.7808]
[1747577462068,148.18,172.98,172.94,5.7802]
[1747577462369,75.7867,173.02,172.91,73.78]
[1747577462568,73.66,173.01,172.91,73.78]
[1747577462866,5.7791,172.99,172.91,73.78]
[1747577463070,73.66,173.01,172.91,73.78]
[1747577463268,75.7867,173.02,172.91,73.78]
[1747577463464,73.64,173.01,172.91,73.78]
[1747577463866,5.7789,172.99,172.95,5.78]
[1747577465170,5.7792,172.98,172.95,5.78]
[1747577465365,73.64,173.01,172.96,5.7797]
[1747577465771,5.7787,173.0,172.96,5.7797]
[1747577465963,5.7787,173.0,172.91,73.78]
[1747577465964,5.7787,173.0,172.97,5.7794]
[1747577466165,5.7787,173.0,172.91,147.36]
[1747577466473,5.7787,173.0,172.96,5.7796]
[1747577467271,5.7782,173.01,172.97,5.7795]
[1747577467472,73.78,173.02,172.91,147.36]
[1747577467773,73.56,173.05,172.93,8.48004517]
[1747577468070,5.7781,173.02,172.97,5.7792]
[1747577468273,73.56,173.05,172.97,5.7792]
[1747577468572,5.7784,173.01,172.97,5.7792]
[1747577468767,73.56,173.05,172.96,5.7797]
[1747577469069,73.56,173.05,172.94,5.847]
[1747577469269,73.78,173.06,172.94,5.847]
[1747577469469,73.52,173.05,172.97,5.7792]
[1747577469672,5.7782,173.01,172.97,5.7792]
[1747577470070,73.78,173.06,172.98,5.7789]
[1747577470275,5.7781,173.02,172.98,5.7789]
[1747577471374,73.48,173.05,172.97,5.7794]
[1747577471976,73.48,173.05,172.98,5.779]
[1747577473069,73.78,173.06,172.96,73.76]
[1747577473270,73.78,173.06,172.96,147.18]
[1747577473471,73.78,173.06,172.97,4.72725865]
[1747577474673,5.7778,173.03,172.98,5.7791]
[1747577475374,5.7778,173.03,172.98,10.50635865]